bitfinex-derivatives/quotes_BNBF0:USTF0_20250220
["timestamp","ask_amount","ask_price","bid_price","bid_amount"]
[1740011345713,1.09290137,653.2,650.95,0.30724325]
[1740011345913,1.09290137,653.19,650.95,0.30724325]
[1740011346109,1.09290137,653.18,650.95,0.30724325]
[1740011346410,0.3061615,653.25,650.95,0.30724325]
[1740011346411,1.09290137,653.17,651.02,1.3565794]
[1740011346614,0.3061615,653.25,651.02,1.3565794]
[1740011346815,1.09007174,653.24,651.12,0.30716304]
[1740011347015,1.09007174,653.23,651.12,0.30716304]
[1740011347317,0.3061615,653.25,651.12,0.30716304]
[1740011351316,1.08547865,653.24,651.12,0.30716304]
[1740011351618,1.08547865,653.23,651.12,0.30716304]
[1740011351919,1.36715485,653.22,651.12,0.30716304]
[1740011352116,1.08571458,653.21,651.12,0.30716304]
[1740011352318,0.28144027,653.2,651.12,0.30716304]
[1740011352516,1.08571458,653.19,651.12,0.30716304]
[1740011352818,1.08571458,653.18,651.12,0.30716304]
[1740011353016,1.08571458,653.17,651.12,0.30716304]
[1740011353212,1.08571458,653.16,651.12,0.30716304]
[1740011353412,1.08571458,653.15,651.12,0.30716304]
[1740011353613,1.08571458,653.14,651.12,0.30716304]
[1740011353818,0.3061615,653.25,651.12,0.30716304]
[1740011354018,1.36667981,653.24,651.12,0.30716304]
[1740011354216,1.36667981,653.23,651.12,0.30716304]
[1740011354417,1.36667981,653.22,651.12,0.30716304]
[1740011354614,1.36667981,653.21,651.12,0.30716304]
[1740011354815,1.08526151,653.2,651.12,0.30716304]
[1740011355019,1.08522612,653.19,651.12,0.30716304]
[1740011355215,1.08522612,653.18,651.12,0.30716304]
[1740011355421,1.08522612,653.17,651.12,0.30716304]
[1740011355617,1.08522612,653.16,651.12,0.30716304]
[1740011355820,0.3061615,653.25,651.12,0.30716304]
[1740011356020,1.36670673,653.24,651.12,0.30716304]
[1740011356220,1.36670673,653.23,651.12,0.30716304]
[1740011356421,1.36670673,653.22,651.12,0.30716304]
[1740011356620,1.36670673,653.21,651.12,0.30716304]
[1740011356820,1.36670673,653.2,651.12,0.30716304]
[1740011357121,1.08528809,653.19,651.12,0.30716304]
[1740011357326,1.36671687,653.18,651.12,0.30716304]
[1740011357520,1.36671687,653.17,651.12,0.30716304]
[1740011357716,1.67292055,653.16,651.12,0.30716304]
[1740011357917,0.58763715,653.15,651.12,0.30716304]
[1740011358120,1.67351082,653.14,651.12,0.30716304]
[1740011358319,1.67351551,653.13,651.12,0.30716304]
[1740011358523,1.67352019,653.12,651.12,0.30716304]
[1740011358724,1.67352488,653.11,651.12,0.30716304]
[1740011358916,1.67352957,653.1,651.12,0.30716304]
[1740011359121,0.30624119,653.08,651.12,0.30716304]
[1740011359323,0.28142878,653.07,651.12,0.30716304]
[1740011359525,0.30625526,653.05,651.12,0.30716304]
[1740011359822,0.28142878,653.04,651.12,0.30716304]
[1740011360021,0.30626933,653.02,651.12,0.30716304]
[1740011360419,0.2816395,653.01,651.12,0.30716304]
[1740011360618,0.30627871,653.0,651.12,0.30716304]
[1740011360819,0.2816395,652.99,651.12,0.30716304]
[1740011361016,0.30628809,652.98,651.12,0.30716304]
[1740011361322,1.08626656,652.97,651.12,0.30716304]
[1740011361522,0.30629747,652.96,651.12,0.30716304]
[1740011362224,1.0862948,652.95,651.12,0.30716304]
[1740011362421,1.39260165,652.94,651.12,0.30716304]
[1740011362616,1.39260634,652.93,651.12,0.30716304]
[1740011362819,1.39261104,652.92,651.12,0.30716304]
[1740011363021,1.39272637,652.91,651.12,0.30716304]
[1740011363219,1.39273106,652.9,651.12,0.30716304]
[1740011363420,1.39273575,652.89,651.12,0.30716304]
[1740011363622,1.39274044,652.88,651.12,0.30716304]
[1740011363825,1.39274514,652.87,651.12,0.30716304]
[1740011364022,1.39274983,652.86,651.12,0.30716304]
[1740011364219,1.39275452,652.85,651.12,0.30716304]
[1740011364419,1.39275921,652.84,651.12,0.30716304]
[1740011364621,1.08640544,652.83,651.12,0.30716304]
[1740011364822,0.30635377,652.84,651.12,0.30716304]
[1740011364823,1.08640544,652.82,651.12,0.30716304]
[1740011365122,1.67445884,652.81,651.12,0.30716304]
[1740011365323,1.67446353,652.8,651.12,0.30716304]
[1740011365521,1.67449104,652.79,651.12,0.30716304]
[1740011365725,1.67449573,652.78,651.12,0.30716304]
[1740011365928,1.67450042,652.77,651.12,0.30716304]
[1740011366128,1.1326265,653.78,651.12,0.30716304]
[1740011366129,1.67450512,652.76,651.12,0.30716304]
[1740011366329,1.67450981,652.75,651.12,0.30716304]
[1740011366526,1.67451451,652.74,651.12,0.30716304]
[1740011366732,1.6745192,652.73,651.12,0.30716304]
[1740011367030,1.67509935,652.72,651.12,0.30716304]
[1740011367226,1.67508865,652.71,651.12,0.30716304]
[1740011367424,1.36867386,652.7,651.12,0.30716304]
[1740011367628,1.36867386,652.69,651.12,0.30716304]
[1740011367827,1.36867386,652.68,651.12,0.30716304]
[1740011368031,1.0869809,652.67,651.12,0.30716304]
[1740011368231,1.0869809,652.66,651.12,0.30716304]
[1740011368425,1.0869809,652.65,651.12,0.30716304]
[1740011368626,0.30641479,652.71,651.12,0.30716304]
[1740011368627,1.0869809,652.64,651.12,0.30716304]
[1740011368829,1.0869809,652.63,651.12,0.30716304]
[1740011369029,1.0869809,652.62,651.12,0.30716304]
[1740011369230,1.0869809,652.61,651.12,0.30716304]
[1740011369532,1.0869809,652.6,651.12,0.30716304]
[1740011369726,0.30641479,652.71,651.12,0.30716304]
[1740011369727,1.0869809,652.59,651.12,0.30716304]
[1740011369933,1.0869809,652.58,651.12,0.30716304]
[1740011370233,1.0869809,652.57,651.12,0.30716304]
[1740011370531,1.0869809,652.56,651.12,0.30716304]
[1740011370726,0.30641479,652.71,651.12,0.30716304]
[1740011370727,1.0869809,652.55,651.12,0.30716304]
[1740011370931,1.0869809,652.54,651.12,0.30716304]
[1740011371131,1.08848358,652.53,651.12,0.30716304]
[1740011371426,1.08848358,652.52,651.12,0.30716304]
[1740011371632,1.08848358,652.51,651.12,0.30716304]
[1740011371832,1.08848358,652.5,651.12,0.30716304]
[1740011372132,1.08848358,652.49,651.12,0.30716304]
[1740011372332,1.08848358,652.48,651.12,0.30716304]
[1740011372528,1.08848358,652.47,651.12,0.30716304]
[1740011372729,1.08848358,652.46,651.12,0.30716304]
[1740011372932,1.08848358,652.45,651.12,0.30716304]
[1740011373129,1.08848358,652.44,651.12,0.30716304]
[1740011373331,1.08848358,652.43,651.12,0.30716304]
[1740011373531,1.08848358,652.42,651.12,0.30716304]
[1740011373734,0.30641479,652.71,651.12,0.30716304]
[1740011373735,1.08848358,652.41,651.12,0.30716304]
[1740011373933,1.08848358,652.4,651.12,0.30716304]
[1740011374133,1.08848358,652.39,651.12,0.30716304]
[1740011374334,1.08848358,652.38,651.12,0.30716304]
[1740011374534,1.08848358,652.37,651.12,0.30716304]
[1740011374731,1.08848358,652.36,651.12,0.30716304]
[1740011374935,1.08848358,652.35,651.12,0.30716304]
[1740011375234,1.08848358,652.34,651.12,0.30716304]
[1740011375436,0.30641479,652.71,651.12,0.30716304]
[1740011375635,1.37066866,652.7,651.12,0.30716304]
[1740011375832,1.67709284,652.69,651.12,0.30716304]
[1740011376038,1.67709753,652.68,651.12,0.30716304]
[1740011376238,1.67710202,652.67,651.12,0.30716304]
[1740011376434,1.67710671,652.66,651.12,0.30716304]
[1740011376632,1.67702068,652.65,651.12,0.30716304]
[1740011376830,1.67702537,652.64,651.12,0.30716304]
[1740011377035,1.67703007,652.63,651.12,0.30716304]
[1740011377235,1.67703477,652.62,651.12,0.30716304]
[1740011377433,1.67703946,652.61,651.12,0.30716304]
[1740011377638,1.67704416,652.6,651.12,0.30716304]
[1740011377839,1.37057772,652.59,651.12,0.30716304]
[1740011378034,1.67705355,652.58,651.12,0.30716304]
[1740011378237,1.67705825,652.57,651.12,0.30716304]
[1740011378434,1.1326265,653.42,651.12,0.30716304]
[1740011378435,1.67706294,652.56,651.12,0.30716304]
[1740011378641,1.67706764,652.55,651.12,0.30716304]
[1740011378840,1.08882,652.54,651.12,0.30716304]
[1740011379036,1.08882,652.53,651.12,0.30716304]
[1740011379241,1.08882,652.52,651.12,0.30716304]
[1740011379540,1.08882,652.51,651.12,0.30716304]
[1740011379741,1.08882,652.5,651.12,0.30716304]
[1740011379941,1.08882,652.49,651.12,0.30716304]
[1740011380135,1.08882,652.48,651.12,0.30716304]
[1740011380335,1.3953475,652.47,651.12,0.30716304]
[1740011380544,1.08882,652.46,651.12,0.30716304]
[1740011380738,1.08882,652.45,651.12,0.30716304]
[1740011381042,1.08882,652.44,651.12,0.30716304]
[1740011381244,1.08882,652.43,651.12,0.30716304]
[1740011381443,1.08882,652.42,651.12,0.30716304]
[1740011381644,1.08882,652.41,651.12,0.30716304]
[1740011381944,1.08882,652.4,651.12,0.30716304]
[1740011382144,0.30654629,652.43,651.12,0.30716304]
[1740011382541,1.1326265,653.54,651.12,0.30716304]
[1740011382744,0.30607716,653.43,651.12,0.30716304]
[1740011382946,0.28161925,653.42,651.12,0.30716304]
[1740011383146,0.30609121,653.4,651.12,0.30716304]
[1740011383346,1.36860246,653.39,651.12,0.30716304]
[1740011383540,0.30610526,653.37,651.12,0.30716304]
[1740011383744,1.36860246,653.36,651.12,0.30716304]
[1740011383943,0.30611932,653.34,651.12,0.30716304]
[1740011384140,1.08698321,653.33,651.12,0.30716304]
[1740011384340,1.3931119,653.32,651.12,0.30716304]
[1740011384646,1.39311659,653.31,651.12,0.30716304]
[1740011384847,1.39312127,653.3,651.12,0.30716304]
[1740011385047,1.39312596,653.29,651.12,0.30716304]
[1740011385347,1.39313065,653.28,651.12,0.30716304]
[1740011385547,1.39313533,653.27,651.12,0.30716304]
[1740011385748,1.39314002,653.26,651.12,0.30716304]
[1740011385947,1.39314471,653.25,651.12,0.30716304]
[1740011386147,1.08698321,653.24,651.12,0.30716304]
[1740011386347,1.39315408,653.23,651.12,0.30716304]
[1740011386648,1.08698321,653.22,651.12,0.30716304]
[1740011386845,1.08698321,653.21,651.12,0.30716304]
[1740011387149,1.39316814,653.2,651.12,0.30716304]
[1740011387447,1.39317283,653.19,651.12,0.30716304]
[1740011387642,1.08639744,653.18,651.12,0.30716304]
[1740011387849,1.08639744,653.17,651.12,0.30716304]
[1740011388043,1.08639744,653.16,651.12,0.30716304]
[1740011388245,1.08639744,653.15,651.12,0.30716304]
[1740011388545,1.08639744,653.14,651.12,0.30716304]
[1740011388745,1.08639744,653.13,651.12,0.30716304]
[1740011388947,1.08639744,653.12,651.12,0.30716304]
[1740011389142,1.08639744,653.11,651.12,0.30716304]
[1740011389346,1.1326265,654.3,651.12,0.30716304]
[1740011389547,0.30572625,654.18,651.12,0.30716304]
[1740011389751,1.3666408,654.17,651.12,0.30716304]
[1740011389949,0.30574027,654.15,651.12,0.30716304]
[1740011390150,1.3666408,654.14,651.12,0.30716304]
[1740011390450,0.30575429,654.12,651.12,0.30716304]
[1740011390747,1.3666408,654.11,651.12,0.30716304]
[1740011390951,0.30576831,654.09,651.12,0.30716304]
[1740011391150,1.3666408,654.08,651.12,0.30716304]
[1740011391353,0.30578234,654.06,651.12,0.30716304]
[1740011391551,1.3666408,654.05,651.12,0.30716304]
[1740011391853,0.30579637,654.03,651.12,0.30716304]
[1740011392054,1.3666408,654.02,651.12,0.30716304]
[1740011392250,0.30581039,654.0,651.12,0.30716304]
[1740011392444,1.3666408,653.99,651.12,0.30716304]
[1740011392644,1.67246054,653.98,651.12,0.30716304]
[1740011392951,0.3058291,653.96,651.12,0.30716304]
[1740011393152,1.36657191,653.95,651.12,0.30716304]
[1740011393453,0.30584313,653.93,651.12,0.30716304]
[1740011393749,1.36657191,653.92,651.12,0.30716304]
[1740011393955,1.39118154,653.91,651.12,0.30716304]
[1740011394146,1.08532906,653.9,651.12,0.30716304]
[1740011394347,1.08532906,653.89,651.12,0.30716304]
[1740011394654,1.36661414,653.88,651.12,0.30716304]
[1740011394848,1.67248533,653.87,651.12,0.30716304]
[1740011395050,0.30588055,653.85,651.12,0.30716304]
[1740011395251,1.36661414,653.84,651.12,0.30716304]
[1740011395450,0.30589458,653.82,651.12,0.30716304]
[1740011395648,1.36661414,653.81,651.12,0.30716304]
[1740011395856,1.67251808,653.8,651.12,0.30716304]
[1740011396054,1.67252276,653.79,651.12,0.30716304]
[1740011396257,1.67252744,653.78,651.12,0.30716304]
[1740011396551,1.67253212,653.77,651.12,0.30716304]
[1740011396752,1.6725368,653.76,651.12,0.30716304]
[1740011396958,1.67254148,653.75,651.12,0.30716304]
[1740011397258,1.67254616,653.74,651.12,0.30716304]
[1740011397457,1.67255084,653.73,651.12,0.30716304]
[1740011397658,1.67255552,653.72,651.12,0.30716304]
[1740011397857,1.6725602,653.71,651.12,0.30716304]
[1740011398058,1.67256488,653.7,651.12,0.30716304]
[1740011398258,1.67256956,653.69,651.12,0.30716304]
[1740011398458,1.67257424,653.68,651.12,0.30716304]
[1740011398663,1.67257892,653.67,651.12,0.30716304]
[1740011398955,1.6725836,653.66,651.12,0.30716304]
[1740011399156,1.67258828,653.65,651.12,0.30716304]
[1740011399357,1.08532906,653.64,651.12,0.30716304]
[1740011399553,1.39131256,653.63,651.12,0.30716304]
[1740011399757,1.08532906,653.62,651.12,0.30716304]
[1740011399962,1.08532906,653.61,651.12,0.30716304]
[1740011400160,1.39132661,653.6,651.12,0.30716304]
[1740011400360,1.08532906,653.59,651.12,0.30716304]
[1740011400557,1.08532906,653.58,651.12,0.30716304]
[1740011400758,1.08532906,653.57,651.12,0.30716304]
[1740011400959,1.08532906,653.56,651.12,0.30716304]
[1740011401157,1.08532906,653.55,651.12,0.30716304]
[1740011401358,1.08532906,653.54,651.12,0.30716304]
[1740011401561,1.08532906,653.53,651.12,0.30716304]
[1740011401861,1.67274788,653.52,651.12,0.30716304]
[1740011402064,1.67275256,653.51,651.12,0.30716304]
[1740011402261,1.67275724,653.5,651.12,0.30716304]
[1740011402482,1.36671287,653.49,651.12,0.30716304]
[1740011402660,1.36671287,653.48,651.12,0.30716304]
[1740011402859,0.30604437,653.5,651.12,0.30716304]
[1740011402860,1.36671287,653.47,651.12,0.30716304]
[1740011403058,1.67277598,653.46,651.12,0.30716304]
[1740011403258,1.1326265,654.9,651.12,0.30716304]
[1740011403259,1.67278066,653.45,651.12,0.30716304]
[1740011403465,1.67278534,653.44,651.12,0.30716304]
[1740011403667,1.67279003,653.43,651.12,0.30716304]
[1740011403865,0.74358694,654.81,651.12,0.30716304]
[1740011403866,1.67279471,653.42,651.12,0.30716304]
[1740011404068,0.58747034,653.41,651.12,0.30716304]
[1740011404267,0.28138381,653.4,651.12,0.30716304]
[1740011404567,0.30608653,653.41,651.12,0.30716304]
[1740011405268,0.28139434,653.4,651.12,0.30716304]
[1740011405561,0.30609589,653.39,651.12,0.30716304]
[1740011405766,0.28139434,653.38,651.12,0.30716304]
[1740011405961,0.30609589,653.39,651.12,0.30716304]
[1740011406966,0.28140764,653.38,651.12,0.30716304]
[1740011407167,0.30610526,653.37,651.12,0.30716304]
[1740011407562,0.28140764,653.36,651.12,0.30716304]
[1740011408463,0.30611463,653.35,651.12,0.30716304]
[1740011408670,0.28140764,653.34,651.12,0.30716304]
[1740011408863,0.30612401,653.33,651.12,0.30716304]
[1740011409166,0.28140764,653.32,651.12,0.30716304]
[1740011409669,0.58761559,653.31,651.12,0.30716304]
[1740011409869,0.58762027,653.3,651.12,0.30716304]
[1740011410070,0.58762496,653.29,651.12,0.30716304]
[1740011410269,0.58762965,653.28,651.12,0.30716304]
[1740011410469,0.28148221,653.27,651.12,0.30716304]
[1740011411170,1.66919173,653.26,651.12,0.30716304]
[1740011411370,1.36303492,653.25,651.12,0.30716304]
[1740011411567,1.36303492,653.24,651.12,0.30716304]
[1740011411769,3.24161519,654.52,651.12,0.30716304]
[1740011411770,1.66920579,653.23,651.12,0.30716304]
[1740011411970,1.66921048,653.22,651.12,0.30716304]
[1740011412172,1.66921516,653.21,651.12,0.30716304]
[1740011412370,1.66921985,653.2,651.12,0.30716304]
[1740011412570,1.36303492,653.19,651.12,0.30716304]
[1740011412770,1.36303492,653.18,651.12,0.30716304]
[1740011412966,0.30620368,653.16,651.12,0.30716304]
[1740011413163,1.3631287,653.15,651.12,0.30716304]
[1740011413366,1.3631287,653.14,651.12,0.30716304]
[1740011413569,0.28157599,653.13,651.12,0.30716304]
[1740011413771,0.28157599,653.15,651.12,0.30716304]
[1740011413970,0.28157599,653.14,651.12,0.30716304]
[1740011414271,0.28157599,653.13,651.12,0.30716304]
[1740011414576,0.28157599,653.12,651.12,0.30716304]
[1740011414767,0.28149143,653.11,651.12,0.30716304]
[1740011414965,0.28149143,653.1,651.12,0.30716304]
[1740011415168,0.28149143,653.09,651.12,0.30716304]
[1740011415369,0.28149143,653.08,651.12,0.30716304]
[1740011415571,0.28149143,653.07,651.12,0.30716304]
[1740011415772,0.28149143,653.15,651.12,0.30716304]
[1740011416074,0.28149143,653.14,651.12,0.30716304]
[1740011416373,0.28149143,653.13,651.12,0.30716304]
[1740011416572,0.28149143,653.15,651.12,0.30716304]
[1740011416769,0.28149143,653.14,651.12,0.30716304]
[1740011416966,0.28149143,653.13,651.12,0.30716304]
[1740011417168,0.28149143,653.15,651.12,0.30716304]
[1740011417373,0.28149143,653.14,651.12,0.30716304]
[1740011417573,0.28149143,653.15,651.12,0.30716304]
[1740011417774,0.28149143,653.14,651.12,0.30716304]
[1740011417975,0.28149143,653.15,651.12,0.30716304]
[1740011418170,0.28151495,653.14,651.12,0.30716304]
[1740011418372,0.28151495,653.13,651.12,0.30716304]
[1740011418568,0.58773738,653.12,651.12,0.30716304]
[1740011418773,0.58774207,653.11,651.12,0.30716304]
[1740011418968,0.28151495,653.1,651.12,0.30716304]
[1740011419170,0.28151495,653.09,651.12,0.30716304]
[1740011419374,0.28151495,653.08,651.12,0.30716304]
[1740011419674,0.28151495,653.07,651.12,0.30716304]
[1740011421071,0.28151495,653.06,651.12,0.30716304]
[1740011421272,0.28151495,653.05,651.12,0.30716304]
[1740011421471,0.28151495,653.04,651.12,0.30716304]
[1740011421672,1.1326265,653.53,651.12,0.30716304]
[1740011421673,0.58777959,653.03,651.12,0.30716304]
[1740011421877,0.58778428,653.02,651.12,0.30716304]
[1740011422076,0.58778897,653.01,651.12,0.30716304]
[1740011422277,0.58779366,653.0,651.12,0.30716304]
[1740011422477,0.58779835,652.99,651.12,0.30716304]
[1740011422678,0.58780304,652.98,651.12,0.30716304]
[1740011422873,0.28151495,652.97,651.12,0.30716304]
[1740011423073,0.30628809,652.98,651.12,0.30716304]
[1740011423278,0.28159145,652.97,651.12,0.30716304]
[1740011423478,0.28159145,652.96,651.12,0.30716304]
[1740011423780,0.58789361,652.95,651.12,0.30716304]
[1740011423980,0.5878983,652.94,651.12,0.30716304]
[1740011424171,0.58790299,652.93,651.12,0.30716304]
[1740011424374,0.28159145,652.92,651.12,0.30716304]
[1740011424579,0.30632093,652.91,651.12,0.30716304]
[1740011424876,0.2816604,652.9,651.12,0.30716304]
[1740011425179,0.30633031,652.89,651.12,0.30716304]
[1740011425384,0.2816604,652.88,651.12,0.30716304]
[1740011425574,1.38927098,652.87,651.12,0.30716304]
[1740011425874,1.38926788,652.86,651.12,0.30716304]
[1740011426077,1.36461889,652.85,651.12,0.30716304]
[1740011426279,1.36461889,652.84,651.12,0.30716304]
[1740011426581,1.36458171,652.83,651.12,0.30716304]
[1740011426782,1.36458171,652.82,651.12,0.30716304]
[1740011426986,1.36458171,652.81,651.12,0.30716304]
[1740011427184,1.08287137,652.8,651.12,0.30716304]
[1740011427381,0.30637724,652.79,651.12,0.30716304]
[1740011427688,1.08292696,652.78,651.12,0.30716304]
[1740011427880,0.30637724,652.79,651.12,0.30716304]
[1740011430184,1.1326265,653.79,651.12,0.30716304]
[1740011430484,0.30595542,653.69,651.12,0.30716304]
[1740011430692,1.36419818,653.68,651.12,0.30716304]
[1740011430988,1.36419818,653.67,651.12,0.30716304]
[1740011431185,1.36419818,653.66,651.12,0.30716304]
[1740011431388,1.36419818,653.65,651.12,0.30716304]
[1740011431588,1.08270457,653.64,651.12,0.30716304]
[1740011431788,1.36418369,653.63,651.12,0.30716304]
[1740011431989,1.36418369,653.62,651.12,0.30716304]
[1740011432189,1.36418369,653.61,651.12,0.30716304]
[1740011432490,1.36418369,653.6,651.12,0.30716304]
[1740011432682,1.36418369,653.59,651.12,0.30716304]
[1740011432887,1.36418369,653.58,651.12,0.30716304]
[1740011433088,1.67019528,653.57,651.12,0.30716304]
[1740011433289,1.08270457,653.56,651.12,0.30716304]
[1740011433487,1.36409172,653.56,651.12,0.30716304]
[1740011433686,1.36409172,653.55,651.12,0.30716304]
[1740011433886,1.08270457,653.54,651.12,0.30716304]
[1740011434186,1.08270457,653.53,651.12,0.30716304]
[1740011434385,0.28137207,653.52,651.12,0.30716304]
[1740011434589,0.30601159,653.57,651.12,0.30716304]
[1740011434790,1.08352472,653.56,651.12,0.30716304]
[1740011435093,0.58737879,653.55,651.12,0.30716304]
[1740011435292,0.28135783,653.54,651.12,0.30716304]
[1740011435887,0.58738815,653.53,651.12,0.30716304]
[1740011436091,0.58739284,653.52,651.12,0.30716304]
[1740011436294,0.58739752,653.51,651.12,0.30716304]
[1740011436491,0.5874022,653.5,651.12,0.30716304]
[1740011436694,0.58740688,653.49,651.12,0.30716304]
[1740011436892,0.58741157,653.48,651.12,0.30716304]
[1740011437093,1.67178676,653.47,651.12,0.30716304]
[1740011437292,0.58742094,653.46,651.12,0.30716304]
[1740011437490,0.58742562,653.45,651.12,0.30716304]
[1740011437794,1.1326265,654.24,651.12,0.30716304]
[1740011437795,0.5874303,653.44,651.12,0.30716304]
[1740011437999,1.67236134,653.43,651.12,0.30716304]
[1740011438199,0.58743967,653.42,651.12,0.30716304]
[1740011438398,0.58744436,653.41,651.12,0.30716304]
[1740011438601,0.28135783,653.4,651.12,0.30716304]
[1740011438997,0.28135783,653.4,651.28,1.3565794]
[1740011439195,0.28135783,653.4,651.38,0.30704043]
[1740011439800,0.30608653,653.41,651.38,0.30704043]
[1740011440202,0.28140435,653.4,651.38,0.30704043]
[1740011440899,1.08674926,653.39,651.38,0.30704043]
[1740011441094,0.30608653,653.41,651.38,0.30704043]
[1740011441095,1.36815361,653.38,651.38,0.30704043]
[1740011441298,1.36815361,653.37,651.38,0.30704043]
[1740011441501,1.08674926,653.36,651.38,0.30704043]
[1740011441703,1.08758448,653.35,651.38,0.30704043]
[1740011442001,0.30608653,653.41,651.38,0.30704043]
[1740011442203,1.08760061,653.4,651.38,0.30704043]
[1740011442501,1.08760061,653.39,651.38,0.30704043]
[1740011442698,0.30608653,653.41,651.38,0.30704043]
[1740011442896,1.36965355,653.4,651.38,0.30704043]
[1740011443097,1.36965355,653.39,651.38,0.30704043]
[1740011443296,1.08825147,653.38,651.38,0.30704043]
[1740011443602,1.08825147,653.37,651.38,0.30704043]
[1740011443800,1.08825147,653.36,651.38,0.30704043]
[1740011444001,1.08825147,653.35,651.38,0.30704043]
[1740011444201,1.08825147,653.34,651.38,0.30704043]
[1740011444502,1.08825147,653.33,651.38,0.30704043]
[1740011444701,1.08825147,653.32,651.38,0.30704043]
[1740011444902,1.08825147,653.31,651.38,0.30704043]
[1740011445203,1.67586751,653.3,651.38,0.30704043]
[1740011445397,1.6758722,653.29,651.38,0.30704043]
[1740011445603,1.67587689,653.28,651.38,0.30704043]
[1740011445802,0.74408829,654.08,651.38,0.30704043]
[1740011445803,1.39440359,653.27,651.38,0.30704043]
[1740011446003,1.39440828,653.26,651.38,0.30704043]
[1740011446204,1.08825147,653.25,651.38,0.30704043]
[1740011448105,0.30615681,653.26,651.38,0.30704043]
[1740011448305,1.08865132,653.25,651.38,0.30704043]
[1740011448506,1.3948175,653.24,651.38,0.30704043]
[1740011448801,1.08865132,653.23,651.38,0.30704043]
[1740011451810,1.08947383,653.22,651.38,0.30704043]
[1740011452011,1.08947383,653.21,651.38,0.30704043]
[1740011452214,1.08947383,653.2,651.38,0.30704043]
[1740011452412,1.08947383,653.19,651.38,0.30704043]
[1740011452711,1.08947383,653.18,651.38,0.30704043]
[1740011452904,1.08947383,653.17,651.38,0.30704043]
[1740011453211,1.08988734,653.16,651.38,0.30704043]
[1740011453512,1.08988734,653.15,651.38,0.30704043]
[1740011453703,1.08988734,653.14,651.38,0.30704043]
[1740011453909,1.08988734,653.13,651.38,0.30704043]
[1740011454110,1.08988734,653.12,651.38,0.30704043]
[1740011454308,0.30616618,653.24,651.38,0.30704043]
[1740011454509,1.09067714,653.23,651.38,0.30704043]
[1740011454704,1.09067714,653.22,651.38,0.30704043]
[1740011455010,1.09067714,653.21,651.38,0.30704043]
[1740011455211,0.30616618,653.24,651.38,0.30704043]
[1740011455212,1.09067714,653.2,651.38,0.30704043]
[1740011455411,1.09067714,653.19,651.38,0.30704043]
[1740011455610,1.09067714,653.18,651.38,0.30704043]
[1740011455813,1.09067714,653.17,651.38,0.30704043]
[1740011456014,0.30616618,653.24,651.38,0.30704043]
[1740011456015,1.09067714,653.16,651.38,0.30704043]
[1740011456208,0.30616618,653.24,651.38,0.30704043]
[1740011457213,1.09125918,653.23,651.38,0.30704043]
[1740011457510,1.09125918,653.22,651.38,0.30704043]
[1740011458509,0.30618024,653.21,651.38,0.30704043]
[1740011458715,1.09125918,653.2,651.38,0.30704043]
[1740011459016,0.30618962,653.19,651.38,0.30704043]
[1740011459217,1.09125918,653.18,651.38,0.30704043]
[1740011459412,0.30619899,653.17,651.38,0.30704043]
[1740011459620,1.37279117,653.16,651.38,0.30704043]
[1740011459917,1.67899954,653.15,651.38,0.30704043]
[1740011460111,1.67900423,653.14,651.38,0.30704043]
[1740011460317,1.67900892,653.13,651.38,0.30704043]
[1740011460511,1.6790136,653.12,651.38,0.30704043]
[1740011460710,1.67901829,653.11,651.38,0.30704043]
[1740011460918,1.67902298,653.1,651.38,0.30704043]
[1740011461112,1.37279117,653.09,651.38,0.30704043]
[1740011461315,1.67903236,653.08,651.38,0.30704043]
[1740011461512,1.67903705,653.07,651.38,0.30704043]
[1740011461710,1.39750975,653.06,651.38,0.30704043]
[1740011461914,1.37283159,653.05,651.38,0.30704043]
[1740011462219,0.30625057,653.06,651.38,0.30704043]
[1740011462220,1.37283159,653.04,651.38,0.30704043]
[1740011462417,0.30625057,653.06,651.38,0.30704043]
[1740011462418,1.37283159,653.03,651.38,0.30704043]
[1740011462617,1.37283159,653.02,651.38,0.30704043]
[1740011462818,1.37283159,653.01,651.38,0.30704043]
[1740011463019,1.37283159,653.0,651.38,0.30704043]
[1740011463220,0.28157241,652.99,651.38,0.30704043]
[1740011463415,1.09273774,652.98,651.38,0.30704043]
[1740011463621,1.37431372,652.97,651.38,0.30704043]
[1740011463920,1.09273774,652.96,651.38,0.30704043]
[1740011464114,1.09273774,652.95,651.38,0.30704043]
[1740011464319,1.09273774,652.94,651.38,0.30704043]
[1740011464615,1.37432537,652.93,651.38,0.30704043]
[1740011464819,0.30625057,653.06,651.38,0.30704043]
[1740011464820,1.37432537,652.92,651.38,0.30704043]
[1740011465120,1.37432537,652.91,651.38,0.30704043]
[1740011465413,1.37432537,652.9,651.38,0.30704043]
[1740011465618,1.37432537,652.89,651.38,0.30704043]
[1740011465816,1.37432537,652.88,651.38,0.30704043]
[1740011466020,1.37432537,652.87,651.38,0.30704043]
[1740011466219,1.37432537,652.86,651.38,0.30704043]
[1740011466421,1.09273774,652.85,651.38,0.30704043]
[1740011466618,1.09273774,652.84,651.38,0.30704043]
[1740011466820,1.09273774,652.83,651.38,0.30704043]
[1740011467017,1.09273774,652.82,651.38,0.30704043]
[1740011467218,1.09273774,652.81,651.38,0.30704043]
[1740011467420,1.09273774,652.8,651.38,0.30704043]
[1740011467617,1.09273774,652.79,651.38,0.30704043]